fUST/lending_fUST_20240503
["ID","MTS","AMOUNT","RATE_DAILY","PERIOD"]
[325356341,1714749936152,-20206.9053272,0.00020913,2]
[325356342,1714749936172,-9140.592806,0.00021215,2]
[325356343,1714749936195,-769.1530622,0.00024297,5]
[325356344,1714749936218,-166.666666,0.00024465,2]
[325356345,1714749936240,-166.666666,0.00025132,2]
[325356346,1714749936262,-166.666666,0.00025799,2]
[325356347,1714749936281,-493.0,0.00026232,2]
[325356348,1714749936302,-150.0,0.00026232,2]
[325356349,1714749936323,-166.666666,0.00026466,2]
[325356350,1714749936343,-1177.2,0.00026761,3]
[325356351,1714749936362,-2000.0,0.00026899,2]
[325356352,1714749936382,-166.666666,0.00026986,2]
[325356353,1714749936401,-3833.83,0.00026987,3]
[325356354,1714749936421,-199.9861592,0.00026995,2]
[325356355,1714749936441,-508.12359985,0.00026995,2]
[325356356,1714749936461,-308.98340641,0.00026995,2]
[325356357,1714749936481,-513.56271106,0.00026995,2]
[325356358,1714749936501,-1167.33091756,0.00026995,2]
[325356359,1714749936523,-500.0,0.00026996,2]
[325356360,1714749936541,-500.0,0.00026996,2]
[325356361,1714749936562,-500.0,0.00026996,2]
[325356362,1714749936582,-500.0,0.00026996,2]
[325356363,1714749936603,-500.0,0.00026996,2]
[325356364,1714749936623,-500.0,0.00026996,2]
[325356365,1714749936644,-500.0,0.00026996,2]
[325356366,1714749936664,-500.0,0.00026996,2]
[325356367,1714749936685,-500.0,0.00026996,2]
[325356368,1714749936707,-500.0,0.00026996,2]
[325356369,1714749936731,-500.0,0.00026996,2]
[325356370,1714749936750,-312.3238339,0.00026996,2]
[325356371,1714749936771,-500.0,0.00026996,2]
[325356372,1714749936793,-500.0,0.00026996,2]
[325356373,1714749936814,-1378.68043058,0.00026997,2]
[325356374,1714749936834,-1492.097253,0.00026997,2]
[325356375,1714749936855,-67460.37167158,0.00026997,2]
[325356376,1714749936879,-3882.58196338,0.00026998,5]
[325356377,1714749936898,-164.12449939,0.00026998,2]
[325356378,1714749936918,-500.0,0.00026998,2]
[325356379,1714749936937,-500.0,0.00026998,2]
[325356380,1714749936958,-500.0,0.00026998,2]
[325356381,1714749936981,-510.42,0.00026998,2]
[325356382,1714749937001,-500.0,0.00026998,2]
[325356383,1714749937020,-500.0,0.00026998,2]
[325356384,1714749937040,-500.0,0.00026998,2]
[325356385,1714749937060,-1259.94034777,0.00026998,2]
[325356386,1714749937092,-124.89965223,0.00026998,2]
[325356387,1714749937113,-500.0,0.00026998,2]
[325356388,1714749937135,-9678.73,0.00026998,2]
[325356389,1714749937156,-502.60664341,0.00026998,2]
[325356390,1714749937176,-500.0,0.00026998,2]
[325356391,1714749937199,-819.52,0.00026998,2]
[325356392,1714749937223,-500.0,0.00026998,2]
[325356393,1714749937244,-10971.07,0.00026998,2]
[325356394,1714749937263,-500.0,0.00026998,2]
[325356395,1714749937282,-1018.84,0.00026998,2]
[325356396,1714749937302,-1066.53,0.00026998,2]
[325356397,1714749937321,-690.26,0.00026998,2]
[325356398,1714749937340,-500.0,0.00026998,2]
[325356399,1714749937361,-2333.03,0.00026998,2]
[325356400,1714749937381,-586.69,0.00026998,2]
[325356401,1714749937400,-627.19,0.00026998,2]
[325356402,1714749937420,-500.0,0.00026998,2]
[325356403,1714749937439,-500.0,0.00026998,2]
[325356404,1714749937458,-508.30494265,0.00026999,2]
[325356405,1714749937479,-862.53,0.00026999,2]
[325356406,1714749937499,-500.0,0.00026999,2]
[325356407,1714749937519,-500.0,0.00026999,2]
[325356408,1714749937538,-5168.64,0.00026999,2]
[325356409,1714749937558,-507.00532692,0.00026999,2]
[325356410,1714749937578,-500.0,0.00026999,2]
[325356411,1714749937597,-500.0,0.00026999,2]
[325356412,1714749937617,-500.0,0.00026999,2]
[325356413,1714749937637,-500.0,0.00026999,2]
[325356414,1714749937657,-837.87,0.00026999,2]
[325356415,1714749937676,-1616.92,0.00026999,2]
[325356416,1714749937695,-2563.36,0.00026999,2]
[325356417,1714749937716,-4048.95,0.00026999,2]
[325356418,1714749937736,-502.41405515,0.00026999,2]
[325356419,1714749937755,-1068.04,0.00026999,2]
[325356420,1714749937775,-561.26,0.00026999,2]
[325356421,1714749937796,-500.0,0.00026999,2]
[325356422,1714749937816,-500.0,0.00026999,2]
[325356423,1714749937837,-207.15406718,0.00026999,2]
[325356424,1714749937858,-1177.24,0.00026999,2]
[325356425,1714749937880,-500.0,0.00026999,2]
[325356426,1714749937900,-500.0,0.00026999,2]
[325356427,1714749937921,-500.0,0.00026999,2]
[325356428,1714749937942,-500.0,0.00026999,2]
[325356429,1714749937965,-660.9,0.00026999,2]
[325356430,1714749937985,-500.0,0.00026999,2]
[325356431,1714749938006,-500.0,0.00026999,2]
[325356432,1714749938026,-1414.26,0.00026999,2]
[325356433,1714749938045,-500.0,0.00026999,2]
[325356434,1714749938065,-500.0,0.00026999,2]
[325356435,1714749938086,-500.0,0.00026999,2]
[325356436,1714749938107,-500.0,0.00026999,2]
[325356437,1714749938128,-8189.41,0.00026999,2]
[325356438,1714749938148,-500.0,0.00026999,2]
[325356439,1714749938167,-500.0,0.00026999,2]
[325356440,1714749938187,-500.0,0.00026999,2]
[325356441,1714749938213,-569.42708086,0.00026999,2]
[325356442,1714749938233,-601.78,0.00026999,2]
[325356443,1714749938254,-1489.61,0.00026999,2]
[325356444,1714749938274,-500.0,0.00026999,2]
[325356445,1714749938297,-469.42348979,0.00026999,2]
[325356446,1714749938316,-500.0,0.00026999,2]
[325356447,1714749938336,-2633.47,0.00026999,2]
[325356448,1714749938355,-500.0,0.00026999,2]
[325356449,1714749938375,-500.0,0.00026999,2]
[325356450,1714749938395,-332.49899832,0.00026999,2]
[325356451,1714749938416,-500.0,0.00026999,2]
[325356452,1714749938436,-830.4,0.00026999,2]
[325356453,1714749938571,-500.0,0.00026999,2]
[325356454,1714749938593,-500.0,0.00026999,2]
[325356455,1714749938615,-500.0,0.00026999,2]
[325356456,1714749938636,-500.0,0.00026999,2]
[325356457,1714749938656,-500.0,0.00026999,2]
[325356458,1714749938676,-500.0,0.00026999,2]
[325356459,1714749938696,-1598.34,0.00026999,2]
[325356460,1714749938719,-500.0,0.00026999,2]
[325356461,1714749938738,-2027.94,0.00026999,2]
[325356462,1714749938759,-500.0,0.00026999,2]
[325356463,1714749938782,-500.0,0.00026999,2]
[325356464,1714749938802,-500.0,0.00026999,2]
[325356465,1714749938823,-500.0,0.00026999,2]
[325356466,1714749938844,-1060.1,0.00026999,2]
[325356467,1714749938864,-500.0,0.00026999,2]
[325356468,1714749938884,-500.0,0.00026999,2]
[325356469,1714749938906,-501.86929367,0.00026999,2]
[325356470,1714749938926,-523.46,0.00026999,2]
[325356471,1714749938947,-11979.16,0.00026999,2]
[325356472,1714749938968,-500.0,0.00026999,2]
[325356473,1714749938988,-326.37229878,0.00026999,2]
[325356474,1714749939008,-500.0,0.00026999,2]
[325356475,1714749939028,-1068.09,0.00026999,2]
[325356476,1714749939049,-559.43,0.00026999,2]
[325356477,1714749939070,-500.0,0.00026999,2]
[325356478,1714749939089,-500.0,0.00026999,2]
[325356479,1714749939109,-500.0,0.00026999,2]
[325356480,1714749939133,-513.59,0.00026999,2]
[325356481,1714749939154,-500.0,0.00026999,2]
[325356482,1714749939174,-500.0,0.00026999,2]
[325356483,1714749939195,-500.0,0.00026999,2]
[325356484,1714749939218,-632.98,0.00026999,2]
[325356485,1714749939239,-297.43806276,0.00026999,2]
[325356486,1714749939258,-637.02,0.00026999,2]
[325356487,1714749939278,-500.0,0.00026999,2]
[325356488,1714749939301,-500.0,0.00026999,2]
[325356489,1714749939321,-1615.03,0.00026999,2]
[325356490,1714749939341,-1312.06,0.00026999,2]
[325356491,1714749939361,-500.0,0.00026999,2]
[325356492,1714749939381,-500.0,0.00026999,2]
[325356493,1714749939402,-576.46,0.00026999,2]
[325356494,1714749939422,-1845.44,0.00026999,2]
[325356495,1714749939441,-500.0,0.00026999,2]
[325356496,1714749939460,-500.0,0.00026999,2]
[325356497,1714749939481,-500.0,0.00026999,2]
[325356498,1714749939501,-500.0,0.00026999,2]
[325356499,1714749939521,-500.0,0.00026999,2]
[325356500,1714749939540,-500.0,0.00026999,2]
[325356501,1714749939560,-500.0,0.00026999,2]
[325356502,1714749939579,-500.0,0.00026999,2]
[325356503,1714749939599,-500.0,0.00026999,2]
[325356504,1714749939619,-500.0,0.00026999,2]
[325356505,1714749939638,-500.0,0.00026999,2]
[325356506,1714749939659,-500.0,0.00026999,2]
[325356507,1714749939679,-500.0,0.00026999,2]
[325356508,1714749939699,-501.9092859,0.00026999,2]
[325356509,1714749939721,-500.0,0.00026999,2]
[325356510,1714749939741,-751.0,0.00026999,2]
[325356511,1714749939762,-500.0,0.00026999,2]
[325356512,1714749939782,-500.0,0.00026999,2]
[325356513,1714749939802,-500.0,0.00026999,2]
[325356514,1714749939821,-500.0,0.00026999,2]
[325356515,1714749939840,-1150.87,0.00026999,2]
[325356516,1714749939861,-664.82,0.00026999,2]
[325356517,1714749939882,-1800.91,0.00026999,2]
[325356518,1714749939902,-500.0,0.00026999,2]
[325356519,1714749939922,-500.0,0.00026999,2]
[325356520,1714749939941,-2580.51,0.00026999,2]
[325356521,1714749939961,-500.0,0.00026999,2]
[325356522,1714749939982,-500.0,0.00026999,2]
[325356523,1714749940002,-500.0,0.00026999,2]
[325356524,1714749940021,-500.0,0.00026999,2]
[325356525,1714749940041,-706.9,0.00026999,2]
[325356526,1714749940060,-500.0,0.00026999,2]
[325356527,1714749940079,-500.0,0.00026999,2]
[325356528,1714749940098,-3537.83,0.00026999,2]
[325356529,1714749940117,-500.0,0.00026999,2]
[325356530,1714749940137,-500.0,0.00026999,2]
[325356531,1714749940156,-3279.51,0.00026999,2]
[325356532,1714749940178,-674.24,0.00026999,2]
[325356533,1714749940202,-500.0,0.00026999,2]
[325356534,1714749940222,-500.0,0.00026999,2]
[325356535,1714749940242,-500.0,0.00026999,2]
[325356536,1714749940263,-500.0,0.00026999,2]
[325356537,1714749940282,-500.0,0.00026999,2]
[325356538,1714749940302,-6240.34097587,0.00027,2]
[325356539,1714749940321,-156.0,0.00027,2]
[325356540,1714749940342,-9113.21966451,0.00027,2]
[325356541,1714749959637,3893.8088336,9.999e-05,2]
[325356542,1714750032378,-154.64431807,0.00025204,2]
[325356543,1714750032399,-9464.357141,0.00025232,2]
[325356544,1714750032419,-323.82177867,0.00026898,2]
[325356545,1714750032439,-1203.54975148,0.00026995,2]
[325356546,1714750032460,-2102.35981509,0.00026995,2]
[325356547,1714750032480,-9759.42069261,0.00026996,2]
[325356548,1714750032501,-243.73484398,0.00026996,2]
[325356549,1714750032521,-500.0,0.00026996,2]
[325356550,1714750032543,-1327.14,0.00026996,2]
[325356551,1714750032564,-9275.45,0.00026996,2]
[325356552,1714750032585,-321835.8859891,0.00026997,2]
[325356553,1714750039115,-5985.88,0.00026987,3]
[325356554,1714750039135,-111337.24132,0.00026997,2]
[325356555,1714750047137,-4988.23,0.00026987,3]
[325356556,1714750047158,-14499.75121633,0.00026997,2]
[325356557,1714750133929,525.36877253,0.0002,4]
[325356558,1714750164219,-212.39219183,0.0002091,2]
[325356559,1714750164239,-525.01331286,0.0002091,4]
[325356560,1714750164262,-1378.68043058,0.0002091,2]
[325356561,1714750164282,-154.64431807,0.00020911,2]
[325356562,1714750164302,-682.01211829,0.00020912,2]
[325356563,1714750164322,-285.09324096,0.00020912,2]
[325356564,1714750164343,-159.64031224,0.00020912,2]
[325356565,1714750164364,-617.95524305,0.00020912,2]
[325356566,1714750164384,-207.34225718,0.00020912,2]
[325356567,1714750164405,-446.55566208,0.00020912,2]
[325356568,1714750164424,-4598.6373137,0.00020912,2]
[325356569,1714750164444,-155.02328462,0.00020912,4]
[325356570,1714750164463,-155.0016707,0.00020912,2]
[325356571,1714750164483,-59247.27286636,0.00020912,2]
[325356572,1714750164503,-1880.67776421,0.00020913,2]
[325356573,1714750164523,-166.666666,0.00024545,2]
[325356574,1714750178307,154.64431807,0.00020913,2]
[325356575,1714750181783,583.66545878,0.00020912,2]
[325356576,1714750193626,154.64431807,0.00020913,2]
[325356577,1714750198080,154.82968734,0.00020913,2]
[325356579,1714750213665,154.64431807,0.00020913,2]
[325356580,1714750231659,154.64431807,0.00020913,2]
[325356600,1714750233460,-166.666666,0.00025214,2]
[325356601,1714750233472,-149.56809101,0.00025272,2]
[325356602,1714750233483,-8957.55174749,0.00025272,2]
[325356603,1714750233492,-166.666666,0.00025883,2]
[325356604,1714750233503,-1022.77717515,0.00026108,2]
[325356605,1714750233512,-166.666666,0.00026553,2]
[325356606,1714750233522,-1079.1,0.00026754,3]
[325356607,1714750233532,-153.0,0.00026795,2]
[325356608,1714750233542,-153.0,0.00026795,2]
[325356609,1714750233552,-153.0,0.00026795,2]
[325356610,1714750233561,-166.666666,0.00026986,2]
[325356612,1714750233570,-277.63,0.00026987,3]
[325356614,1714750233579,-4681.79,0.00026987,3]
[325356615,1714750233589,-7309.83,0.00026987,3]
[325356617,1714750233599,-500.0,0.00026996,2]
[325356619,1714750233608,-500.0,0.00026996,2]
[325356634,1714750233751,-500.0,0.00026996,2]
[325356636,1714750233761,-525.68020666,0.00026996,2]
[325356638,1714750233771,-785.37,0.00026996,2]
[325356640,1714750233780,-500.0,0.00026996,2]
[325356642,1714750233790,-10513.94,0.00026996,2]
[325356644,1714750233800,-976.39,0.00026996,2]
[325356646,1714750233810,-500.0,0.00026996,2]
[325356648,1714750233819,-1022.09,0.00026996,2]
[325356650,1714750233829,-2235.82,0.00026996,2]
[325356651,1714750233838,-562.24,0.00026996,2]
[325356653,1714750233847,-601.06,0.00026996,2]
[325356655,1714750233856,-797.94,0.00026996,2]
[325356657,1714750233865,-500.0,0.00026996,2]
[325356659,1714750233875,-6216.02,0.00026996,2]
[325356661,1714750233885,-68462.64707582,0.00026997,2]
[325356740,1714750234702,-186181.20892338,0.00026997,2]
[325356832,1714750238901,-6091.53,0.00026987,3]
[325356836,1714750238911,-500.0,0.00026996,2]
[325356840,1714750238920,-85337.23842257,0.00026997,2]
[325356844,1714750238930,-512.63,0.00026998,2]
[325356848,1714750238939,-500.0,0.00026998,2]
[325356849,1714750238948,-500.0,0.00026998,2]
[325356851,1714750238957,-500.0,0.00026998,2]
[325356853,1714750238967,-500.0,0.00026998,2]
[325356856,1714750238977,-500.0,0.00026998,2]
[325356858,1714750238986,-2997.35,0.00026998,2]
[325356859,1714750238995,-500.0,0.00026998,2]
[325356861,1714750239005,-1578.22,0.00026998,2]
[325356864,1714750239015,-721.96,0.00026998,2]
[325356865,1714750239025,-500.0,0.00026998,2]
[325356867,1714750239034,-500.0,0.00026998,2]
[325356869,1714750239043,-1485.57,0.00026998,2]
[325356871,1714750239054,-500.0,0.00026998,2]
[325356873,1714750239063,-4953.28,0.00026998,2]
[325356876,1714750239073,-1549.55,0.00026998,2]
[325356877,1714750239084,-6371.53,0.00026998,2]
[325356879,1714750239094,-2101.63,0.00026998,2]
[325356882,1714750239104,-500.0,0.00026998,2]
[325356884,1714750239113,-500.0,0.00026998,2]
[325356885,1714750239123,-500.0,0.00026998,2]
[325356888,1714750239133,-7429.7,0.00026998,2]
[325356890,1714750239143,-2456.55,0.00026998,2]
[325356891,1714750239152,-500.0,0.00026998,2]
[325356893,1714750239161,-633.36,0.00026998,2]
[325356895,1714750239170,-500.0,0.00026998,2]
[325356897,1714750239179,-1023.54,0.00026998,2]
[325356899,1714750239189,-1355.33,0.00026998,2]
[325356901,1714750239198,-1128.19,0.00026998,2]
[325356903,1714750239207,-1213.87,0.00026998,2]
[325356905,1714750239217,-500.0,0.00026998,2]
[325356907,1714750239228,-500.0,0.00026998,2]
[325356909,1714750239236,-500.0,0.00026998,2]
[325356911,1714750239247,-500.0,0.00026998,2]
[325356913,1714750239257,-500.0,0.00026998,2]
[325356915,1714750239266,-500.0,0.00026998,2]
[325356917,1714750239275,-5823.87294508,0.00026999,5]
[325356919,1714750239286,-500.0,0.00026999,2]
[325356921,1714750239296,-500.0,0.00026999,2]
[325356923,1714750239306,-500.0,0.00026999,2]
[325356925,1714750239315,-500.0,0.00026999,2]
[325356927,1714750239325,-519.22,0.00026999,2]
[325356929,1714750239335,-500.0,0.00026999,2]
[325356931,1714750239344,-500.0,0.00026999,2]
[325356933,1714750239354,-1543.8,0.00026999,2]
[325356935,1714750239363,-500.0,0.00026999,2]
[325356937,1714750239373,-500.0,0.00026999,2]
[325356939,1714750239383,-1504.09,0.00026999,2]
[325356941,1714750239393,-500.0,0.00026999,2]
[325356943,1714750239402,-576.71,0.00026999,2]
[325356944,1714750239412,-500.0,0.00026999,2]
[325356945,1714750239421,-510.08618407,0.00026999,2]
[325356946,1714750239431,-500.0,0.00026999,2]
[325356947,1714750239440,-500.0,0.00026999,2]
[325356949,1714750239449,-500.0,0.00026999,2]
[325356950,1714750239458,-500.0,0.00026999,2]
[325356952,1714750239467,-500.0,0.00026999,2]
[325356953,1714750239476,-1175.46,0.00026999,2]
[325356954,1714750239486,-500.0,0.00026999,2]
[325356955,1714750239495,-590.04,0.00026999,2]
[325356956,1714750239504,-1444.11,0.00026999,2]
[325356957,1714750239513,-500.0,0.00026999,2]
[325356958,1714750239523,-500.0,0.00026999,2]
[325356959,1714750239533,-500.0,0.00026999,2]
[325356960,1714750239542,-500.0,0.00026999,2]
[325356961,1714750239551,-500.0,0.00026999,2]
[325356962,1714750239561,-758.49,0.00026999,2]
[325356963,1714750239570,-500.0,0.00026999,2]
[325356964,1714750239580,-500.0,0.00026999,2]
[325356965,1714750239589,-500.0,0.00026999,2]
[325356966,1714750239598,-3880.25,0.00026999,2]
[325356967,1714750239608,-537.87,0.00026999,2]
[325356968,1714750239617,-500.0,0.00026999,2]
[325356969,1714750239627,-329.14637404,0.00026999,2]
[325356970,1714750239746,-500.0,0.00026999,2]
[325356971,1714750239756,-500.0,0.00026999,2]
[325356972,1714750239765,-500.0,0.00026999,2]
[325356973,1714750239774,-500.58,0.00026999,2]
[325356974,1714750239784,-268.33328804,0.00027,2]
[325356975,1714750239793,-5000.0,0.00027,2]
[325356976,1714750239803,-8532.81812051,0.00027,2]
[325356977,1714750239812,-2388.78833147,0.00027,2]
[325356978,1714750239823,-204.0119045,0.00027053,2]
[325356979,1714750239832,-204.0119045,0.00027053,2]
[325356980,1714750239842,-552.44,0.0002709,2]
[325356981,1714750239851,-500.0,0.0002709,2]
[325356982,1714750239861,-55555.0,0.00027172,3]
[325356983,1714750239870,-2002.16701575,0.000272,4]
[325356984,1714750239880,-166.666666,0.00027222,2]
[325356985,1714750239890,-7941.66154308,0.0002727,2]
[325356986,1714750239899,-1327.14,0.0002727,2]
[325356987,1714750239908,-9275.45,0.0002727,2]
[325356988,1714750239918,-785.37,0.0002727,2]
[325356989,1714750239928,-500.0,0.0002727,2]
[325356990,1714750239938,-10513.94,0.0002727,2]
[325356991,1714750239948,-976.39,0.0002727,2]
[325356992,1714750239957,-500.0,0.0002727,2]
[325356993,1714750239966,-1022.09,0.0002727,2]
[325356994,1714750239976,-2235.82,0.0002727,2]
[325356995,1714750239986,-562.24,0.0002727,2]
[325356996,1714750239995,-601.06,0.0002727,2]
[325356997,1714750240005,-797.94,0.0002727,2]
[325356998,1714750240015,-500.0,0.0002727,2]
[325356999,1714750240024,-6216.02,0.0002727,2]
[325357000,1714750240034,-500.0,0.0002727,2]
[325357001,1714750240043,-500.0,0.00027272,2]
[325357002,1714750240053,-500.0,0.00027272,2]
[325357003,1714750240062,-500.0,0.00027272,2]
[325357004,1714750240072,-510.42,0.00027272,2]
[325357005,1714750240081,-500.0,0.00027272,2]
[325357006,1714750240091,-500.0,0.00027272,2]
[325357007,1714750240100,-500.0,0.00027272,2]
[325357008,1714750240109,-500.0,0.00027272,2]
[325357009,1714750240119,-690.26,0.00027272,2]
[325357010,1714750240128,-343.15891656,0.00027272,2]
[325357011,1714750240138,-500.0,0.00027272,2]
[325357012,1714750240147,-500.0,0.00027272,2]
[325357013,1714750240157,-512.63,0.00027272,2]
[325357014,1714750240167,-608.25107978,0.00027272,2]
[325357015,1714750240177,-500.0,0.00027272,2]
[325357016,1714750240186,-500.0,0.00027272,2]
[325357017,1714750240196,-500.0,0.00027272,2]
[325357018,1714750240205,-500.0,0.00027272,2]
[325357019,1714750240215,-2997.35,0.00027272,2]
[325357020,1714750240226,-500.0,0.00027272,2]
[325357021,1714750240235,-1578.22,0.00027272,2]
[325357022,1714750240246,-721.96,0.00027272,2]
[325357023,1714750240255,-500.0,0.00027272,2]
[325357024,1714750240265,-500.0,0.00027272,2]
[325357025,1714750240274,-1485.57,0.00027272,2]
[325357026,1714750240285,-500.0,0.00027272,2]
[325357027,1714750240299,-4953.28,0.00027272,2]
[325357028,1714750240308,-1549.55,0.00027272,2]
[325357029,1714750240318,-6371.53,0.00027272,2]
[325357030,1714750240327,-2101.63,0.00027272,2]
[325357031,1714750240338,-500.0,0.00027272,2]
[325357032,1714750240347,-500.0,0.00027272,2]
[325357033,1714750240356,-500.0,0.00027272,2]
[325357034,1714750240367,-7429.7,0.00027272,2]
[325357035,1714750240377,-2456.55,0.00027272,2]
[325357036,1714750240387,-500.0,0.00027272,2]
[325357037,1714750240397,-633.36,0.00027272,2]
[325357038,1714750240407,-500.0,0.00027272,2]
[325357043,1714750240418,-1023.54,0.00027272,2]
[325357045,1714750240428,-1355.33,0.00027272,2]
[325357048,1714750240437,-1128.19,0.00027272,2]
[325357051,1714750240447,-1213.87,0.00027272,2]
[325357053,1714750240457,-207.34764724,0.00027272,2]
[325357055,1714750240466,-500.0,0.00027272,2]
[325357057,1714750240476,-500.0,0.00027272,2]
[325357058,1714750240488,-500.0,0.00027272,2]
[325357059,1714750240497,-500.0,0.00027272,2]
[325357060,1714750240506,-500.0,0.00027272,2]
[325357061,1714750240516,-862.53,0.00027273,2]
[325357062,1714750240525,-500.0,0.00027273,2]
[325357063,1714750240535,-500.0,0.00027273,2]
[325357064,1714750240544,-500.0,0.00027273,2]
[325357065,1714750240554,-837.87,0.00027273,2]
[325357066,1714750240563,-500.0,0.00027273,2]
[325357067,1714750240573,-500.0,0.00027273,2]
[325357068,1714750240582,-500.0,0.00027273,2]
[325357069,1714750240592,-500.0,0.00027273,2]
[325357070,1714750240602,-500.0,0.00027273,2]
[325357071,1714750240611,-500.0,0.00027273,2]
[325357072,1714750240621,-500.0,0.00027273,2]
[325357073,1714750240630,-500.0,0.00027273,2]
[325357074,1714750240640,-500.0,0.00027273,2]
[325357075,1714750240649,-500.0,0.00027273,2]
[325357076,1714750240659,-1489.61,0.00027273,2]
[325357077,1714750240670,-500.0,0.00027273,2]
[325357078,1714750240680,-500.0,0.00027273,2]
[325357079,1714750240689,-2633.47,0.00027273,2]
[325357080,1714750240700,-500.0,0.00027273,2]
[325357082,1714750240709,-500.0,0.00027273,2]
[325357083,1714750240720,-830.4,0.00027273,2]
[325357085,1714750240730,-605.90740332,0.00027273,2]
[325357087,1714750240740,-500.0,0.00027273,2]
[325357089,1714750240750,-500.0,0.00027273,2]
[325357091,1714750240759,-500.0,0.00027273,2]
[325357093,1714750240769,-1598.34,0.00027273,2]
[325357094,1714750240778,-500.0,0.00027273,2]
[325357096,1714750240788,-500.0,0.00027273,2]
[325357097,1714750240797,-500.0,0.00027273,2]
[325357098,1714750240807,-500.0,0.00027273,2]
[325357099,1714750240817,-500.0,0.00027273,2]
[325357100,1714750240827,-1060.1,0.00027273,2]
[325357101,1714750240837,-500.0,0.00027273,2]
[325357102,1714750240846,-523.46,0.00027273,2]
[325357103,1714750240856,-500.0,0.00027273,2]
[325357104,1714750240866,-500.0,0.00027273,2]
[325357105,1714750240876,-1068.09,0.00027273,2]
[325357106,1714750240885,-559.43,0.00027273,2]
[325357107,1714750240895,-500.0,0.00027273,2]
[325357108,1714750240904,-500.0,0.00027273,2]
[325357109,1714750240914,-500.0,0.00027273,2]
[325357110,1714750240923,-513.59,0.00027273,2]
[325357111,1714750240935,-500.0,0.00027273,2]
[325357112,1714750240944,-500.0,0.00027273,2]
[325357113,1714750240954,-500.0,0.00027273,2]
[325357114,1714750240963,-632.98,0.00027273,2]
[325357115,1714750240975,-637.02,0.00027273,2]
[325357116,1714750240985,-500.0,0.00027273,2]
[325357117,1714750240994,-500.0,0.00027273,2]
[325357118,1714750241004,-1615.03,0.00027273,2]
[325357119,1714750241014,-1312.06,0.00027273,2]
[325357120,1714750241024,-500.0,0.00027273,2]
[325357121,1714750241034,-594.4842186,0.00027273,2]
[325357122,1714750241044,-1845.44,0.00027273,2]
[325357123,1714750241054,-644.85264972,0.00027273,2]
[325357124,1714750241063,-500.0,0.00027273,2]
[325357125,1714750241073,-500.0,0.00027273,2]
[325357126,1714750241082,-500.0,0.00027273,2]
[325357127,1714750241092,-500.0,0.00027273,2]
[325357129,1714750241102,-500.0,0.00027273,2]
[325357131,1714750241112,-500.0,0.00027273,2]
[325357133,1714750241122,-365.99674497,0.00027273,2]
[325357135,1714750241131,-500.0,0.00027273,2]
[325357138,1714750241141,-500.0,0.00027273,2]
[325357140,1714750241150,-500.0,0.00027273,2]
[325357142,1714750241160,-500.0,0.00027273,2]
[325357144,1714750241170,-751.0,0.00027273,2]
[325357146,1714750241179,-544.98588063,0.00027273,2]
[325357148,1714750241188,-500.0,0.00027273,2]
[325357150,1714750241197,-500.0,0.00027273,2]
[325357151,1714750241207,-1150.87,0.00027273,2]
[325357153,1714750241216,-664.82,0.00027273,2]